bitfinex/quotes_BTCUSD_20230110
["timestamp","ask_amount","ask_price","bid_price","bid_amount"]
[1673309815641,3.57533398,17187.0,17186.0,0.00934224]
[1673309816672,2.99349898,17187.0,17186.0,0.00934224]
[1673309818463,2.35439905,17187.0,17186.0,0.00934224]
[1673309821253,3.28731148,17187.0,17186.0,0.00934224]
[1673309821507,3.31436035,17187.0,17186.0,0.00934224]
[1673309821763,3.89619535,17187.0,17186.0,0.00934224]
[1673309822285,3.52436976,17187.0,17186.0,0.00934224]
[1673309822550,2.93550034,17187.0,17186.0,0.00934224]
[1673309823322,2.35366534,17187.0,17186.0,0.00934224]
[1673309827407,2.87688076,17187.0,17186.0,0.00934224]
[1673309828408,2.35366534,17187.0,17186.0,0.00934224]
[1673309828909,1.99166334,17187.0,17186.0,0.00934224]
[1673309829151,2.35366534,17187.0,17186.0,0.00934224]
[1673309831411,2.35200476,17187.0,17186.0,0.00934224]
[1673309831704,1.77016976,17187.0,17186.0,0.00934224]
[1673309832474,2.35200476,17187.0,17186.0,0.00934224]
[1673309833227,2.35200476,17187.0,17186.0,0.00922282]
[1673309834953,2.35366534,17187.0,17186.0,0.00922282]
[1673309835384,2.35355935,17187.0,17186.0,0.00922282]
[1673309836957,2.35255935,17187.0,17186.0,0.00922282]
[1673309838116,1.77072435,17187.0,17186.0,0.00922282]
[1673309840770,1.76906377,17187.0,17186.0,0.00922282]
[1673309841040,2.29268429,17187.0,17186.0,0.00922282]
[1673309841295,2.29268589,17187.0,17186.0,0.00922282]
[1673309841556,1.76906377,17187.0,17186.0,0.00922282]
[1673309841826,2.26563114,17187.0,17186.0,0.00922282]
[1673309844461,1.90528972,17187.0,17186.0,0.00922282]
[1673309844713,2.26729172,17187.0,17186.0,0.00922282]
[1673309845201,2.26729172,17187.0,17186.0,0.59109082]
[1673309845737,2.26729172,17187.0,17186.0,0.00922282]
[1673309847188,2.26729172,17187.0,17186.0,0.59109082]
[1673309847482,1.74367548,17187.0,17186.0,0.59109082]
[1673309848009,1.4420149,17187.0,17186.0,1.39083547]
[1673309848262,0.64290308,17187.0,17186.0,1.73502558]
[1673309848773,0.81395233,17187.0,17186.0,1.73502558]
[1673309849060,0.63940407,17187.0,17186.0,1.73502558]
[1673309850104,0.63940407,17187.0,17186.0,2.33502558]
[1673309850382,0.63940407,17187.0,17186.0,2.91689358]
[1673309850630,0.46493704,17187.0,17186.0,2.91689358]
[1673309851154,0.81373789,17187.0,17186.0,2.91689358]
[1673309851406,0.81373784,17187.0,17186.0,2.91689358]
[1673309851906,0.63940407,17187.0,17186.0,2.91689358]
[1673309852442,0.64106465,17187.0,17186.0,2.31689358]
[1673309852691,0.63940407,17187.0,17186.0,2.31689358]
[1673309853537,0.64106465,17187.0,17186.0,2.31689358]
[1673309853743,0.63940407,17187.0,17186.0,2.31689358]
[1673309855001,1.07555216,17187.0,17186.0,2.31689358]
[1673309855242,0.81395233,17187.0,17186.0,2.31689358]
[1673309856430,0.81561291,17187.0,17186.0,2.31689358]
[1673309857391,0.81395233,17187.0,17186.0,2.31689358]
[1673309857887,0.85910754,17187.0,17186.0,2.31689358]
[1673309858155,1.12054008,17187.0,17186.0,2.31689358]
[1673309858399,0.68439199,17187.0,17186.0,2.31689358]
[1673309858683,0.86076812,17187.0,17186.0,2.31689358]
[1673309858904,0.68604702,17187.0,17186.0,2.31689358]
[1673309859151,0.68438644,17187.0,17186.0,2.31689358]
[1673309859452,1.12053453,17187.0,17186.0,2.31689358]
[1673309859702,1.12219511,17187.0,17186.0,2.31689358]
[1673309860008,1.1221968,17187.0,17186.0,2.31689358]
[1673309860198,0.85910754,17187.0,17186.0,2.31689358]
[1673309860468,1.12053593,17187.0,17186.0,2.31682044]
[1673309860711,0.68438784,17187.0,17186.0,2.31682044]
[1673309861755,0.50986335,17187.0,17186.0,2.31682044]
[1673309862257,0.85866759,17187.0,17186.0,2.31682044]
[1673309862517,0.50986335,17187.0,17186.0,2.31682044]
[1673309862757,0.85866759,17187.0,17186.0,2.31682044]
[1673309862996,0.50986335,17187.0,17186.0,2.31682044]
[1673309864251,0.24843496,17187.0,17186.0,2.7458735]
[1673309864508,0.24831821,17187.0,17186.0,2.7458735]
[1673309864758,0.24831821,17187.0,17186.0,3.0458735]
[1673309865260,0.21943496,17187.0,17186.0,3.21082044]
[1673309865506,0.04515521,17187.0,17186.0,3.6808735]
[1673309865997,0.04515521,17187.0,17186.0,3.3808735]
[1673309866544,0.04515521,17187.0,17186.0,2.95182044]
[1673309866999,0.04515521,17187.0,17186.0,3.3398735]
[1673309867259,0.04515521,17187.0,17186.0,3.3808735]
[1673309867496,0.04515521,17187.0,17186.0,3.25182044]
[1673309867993,0.04515521,17187.0,17186.0,2.95182044]
[1673309868238,0.04515521,17187.0,17186.0,3.25182044]
[1673309868518,0.04515521,17187.0,17186.0,2.95182044]
[1673309870035,0.21943496,17187.0,17186.0,2.95182044]
[1673309873309,0.04515521,17187.0,17186.0,2.95182044]
[1673309874294,0.21943496,17187.0,17186.0,2.95182044]
[1673309874523,0.04515521,17187.0,17186.0,2.95182044]
[1673309876556,0.21943496,17187.0,17186.0,2.35182044]
[1673309877780,0.04515521,17187.0,17186.0,2.35182044]
[1673309878505,0.21943496,17187.0,17186.0,2.35182044]
[1673309878745,0.48086335,17187.0,17186.0,2.35182044]
[1673309879065,0.21943496,17187.0,17186.0,2.35182044]
[1673309882045,0.04515521,17187.0,17186.0,2.65182044]
[1673309882504,0.21943496,17187.0,17186.0,2.65182044]
[1673309882743,0.21943496,17187.0,17186.0,2.35182044]
[1673309883739,0.21943496,17187.0,17186.0,2.65182044]
[1673309884010,0.21943496,17187.0,17186.0,2.35182044]
[1673309884275,0.21943496,17187.0,17186.0,2.65182044]
[1673309884528,0.21943496,17187.0,17186.0,2.35182044]
[1673309886723,0.48086335,17187.0,17186.0,2.35182044]
[1673309887357,0.21943496,17187.0,17186.0,2.35182044]
[1673309887613,0.48086335,17187.0,17186.0,2.35182044]
[1673309887898,0.21943496,17187.0,17186.0,2.35182044]
[1673309889231,0.48086335,17187.0,17186.0,2.35182044]
[1673309895027,0.48086335,17187.0,17186.0,2.35227829]
[1673309896843,0.82966759,17187.0,17186.0,2.35227829]
[1673309897026,0.48086335,17187.0,17186.0,2.35227829]
[1673309898535,0.65538784,17187.0,17186.0,2.35227829]
[1673309899759,0.48107635,17187.0,17186.0,2.35227829]
[1673309902317,0.48007635,17187.0,17186.0,2.35227829]
[1673309903344,0.48007635,17187.0,17186.0,2.65227829]
[1673309903601,0.48007635,17187.0,17186.0,3.01428029]
[1673309904094,0.48007635,17187.0,17186.0,2.71428029]
[1673309905076,0.21864796,17187.0,17186.0,3.01428029]
[1673309905337,0.21864796,17187.0,17186.0,3.18875329]
[1673309905592,0.21864796,17187.0,17186.0,3.01428029]
[1673309905845,0.21864796,17187.0,17186.0,3.18875329]
[1673309906367,0.04415521,17187.0,17186.0,3.76371116]
[1673309906616,0.04415521,17187.0,17186.0,4.6890117]
[1673309906868,0.04415521,17187.0,17186.0,3.98104013]
[1673309907109,0.04415521,17187.0,17186.0,4.53855366]
[1673309907366,0.04415521,17187.0,17186.0,4.9239338]
[1673309907855,0.04415521,17187.0,17186.0,4.92343188]
[1673309908341,0.04415521,17187.0,17186.0,4.70759601]
[1673309908587,0.04415521,17187.0,17186.0,4.84759601]
[1673309909623,0.04415521,17187.0,17186.0,5.02243188]
[1673309911609,0.04415521,17187.0,17186.0,5.02220016]
[1673309911857,0.04415521,17187.0,17186.0,4.84708758]
[1673309914642,0.04415521,17187.0,17186.0,5.02220016]
[1673309914905,0.04415521,17187.0,17186.0,5.21280016]
[1673309915937,0.024,17190.0,17187.0,0.33632299]
[1673309916191,0.024,17190.0,17189.0,1.2]
[1673309916429,0.024,17190.0,17189.0,4.3346566]
[1673309916932,0.024,17190.0,17189.0,4.89197828]
[1673309918473,0.024,17190.0,17189.0,4.91897828]
[1673309919743,0.024,17190.0,17189.0,4.91943605]
[1673309919967,0.024,17190.0,17189.0,4.36211437]
[1673309920224,0.024,17190.0,17189.0,4.95606204]
[1673309920495,0.024,17190.0,17189.0,5.14686204]
[1673309920762,0.024,17190.0,17189.0,5.32078498]
[1673309921009,0.024,17190.0,17189.0,6.24107738]
[1673309921258,0.024,17190.0,17189.0,6.21407738]
[1673309921498,0.024,17190.0,17189.0,5.55466939]
[1673309921744,0.024,17190.0,17189.0,6.64557518]
[1673309921981,0.024,17190.0,17189.0,6.50457518]
[1673309922240,0.024,17190.0,17189.0,6.8178646]
[1673309922720,0.024,17190.0,17189.0,6.87860128]
[1673309922997,0.00755221,17193.0,17190.0,0.3]
[1673309923239,0.00755221,17193.0,17192.0,1.3895]
[1673309923485,0.00755221,17193.0,17192.0,4.81779827]
[1673309923731,0.00755221,17193.0,17192.0,5.11779827]
[1673309924500,0.00755221,17193.0,17192.0,5.25879827]
[1673309925019,0.00740221,17193.0,17192.0,5.25879827]
[1673309925282,0.00740221,17193.0,17192.0,5.82089781]
[1673309925537,0.00740221,17193.0,17192.0,5.96089781]
[1673309925794,0.00740221,17193.0,17192.0,5.77139781]
[1673309926577,0.00740221,17193.0,17192.0,5.06829827]
[1673309926829,0.00740221,17193.0,17192.0,5.63777679]
[1673309927334,0.00740221,17193.0,17192.0,5.06892636]
[1673309927842,0.00740221,17193.0,17192.0,5.58713263]
[1673309928608,0.00887745,17195.0,17193.0,0.3]
[1673309928859,0.00887745,17195.0,17194.0,4.18902201]
[1673309929158,0.00887745,17195.0,17194.0,4.61637561]
[1673309929418,0.00887745,17195.0,17194.0,4.18902201]
[1673309930131,0.00887745,17195.0,17194.0,4.83904633]
[1673309930905,0.00887745,17195.0,17194.0,4.93604633]
[1673309932246,0.00887745,17195.0,17194.0,5.36339993]
[1673309932406,0.00887745,17195.0,17194.0,4.93604633]
[1673309933202,0.00887745,17195.0,17194.0,4.57404433]
[1673309933476,0.23281681,17195.0,17194.0,1.260196]
[1673309933748,0.59481881,17195.0,17194.0,1.260196]
[1673309934509,1.03073995,17195.0,17194.0,1.260196]
[1673309934812,0.3,17194.0,17193.0,0.26119294]
[1673309935104,0.1908,17193.0,17190.0,1.18224813]
[1673309935372,0.1908,17193.0,17189.0,0.64323683]
[1673309935373,0.79681621,17191.0,17189.0,0.64323683]
[1673309935623,0.72548807,17190.0,17188.0,1.2]
[1673309935881,0.362002,17189.0,17188.0,1.74197665]
[1673309936444,0.4898,17190.0,17189.0,0.64959209]
[1673309936699,0.49146058,17190.0,17189.0,0.64959209]
[1673309936947,0.85346258,17190.0,17189.0,0.64959209]
[1673309937517,0.94546258,17190.0,17189.0,0.65759209]
[1673309938275,0.938802,17190.0,17189.0,0.65759209]
[1673309940828,0.938802,17190.0,17189.0,1.23935909]
[1673309941334,0.638802,17190.0,17189.0,1.23935909]
[1673309941831,0.64046258,17190.0,17189.0,1.23935909]
[1673309942085,0.638802,17190.0,17189.0,1.23935909]
[1673309942852,0.64046258,17190.0,17189.0,1.23935909]
[1673309943107,0.638802,17190.0,17189.0,1.23935909]
[1673309944149,0.638802,17190.0,17189.0,1.82112609]
[1673309944150,0.454002,17190.0,17189.0,1.82112609]
[1673309944633,0.45566258,17190.0,17189.0,1.82112609]
[1673309944883,0.454002,17190.0,17189.0,1.82112609]
[1673309945677,0.45566258,17190.0,17189.0,1.82112609]
[1673309945931,0.092,17190.0,17189.0,1.82112609]
[1673309946200,0.454002,17190.0,17189.0,1.82112609]
[1673309946735,0.45566258,17190.0,17189.0,1.82112609]
[1673309947513,0.454002,17190.0,17189.0,1.82112609]
[1673309947996,0.45566258,17190.0,17189.0,1.82112609]
[1673309948000,0.454002,17190.0,17189.0,1.82112609]
[1673309948245,0.454002,17190.0,17189.0,2.40289309]
[1673309949532,0.454002,17190.0,17189.0,1.771534]
[1673309949828,0.092,17190.0,17189.0,3.35854263]
[1673309950123,0.092,17190.0,17189.0,3.71481241]
[1673309950662,0.092,17190.0,17189.0,3.28756319]
[1673309952453,0.092,17190.0,17189.0,3.86933019]
[1673309956976,0.12800164,17190.0,17189.0,3.86933019]
[1673309957467,0.12800164,17190.0,17189.0,3.67449789]
[1673309957712,0.12800164,17190.0,17189.0,4.33769117]
[1673309957951,0.12800164,17190.0,17189.0,3.91044195]
[1673309961309,0.12800164,17190.0,17189.0,3.91107015]
[1673309962085,0.12800164,17190.0,17189.0,4.33831937]
[1673309963923,0.12800164,17190.0,17189.0,3.91107015]
[1673309964441,0.12800164,17190.0,17189.0,4.33831937]
[1673309967471,0.12800164,17190.0,17189.0,3.67512609]
[1673309967715,0.12800164,17190.0,17189.0,4.03712809]
[1673309968467,0.12800164,17190.0,17189.0,4.66780781]
[1673309969006,0.12800164,17190.0,17189.0,4.03712809]
[1673309969250,0.12800164,17190.0,17189.0,4.62740726]
[1673309969762,0.12800164,17190.0,17189.0,4.26540526]
[1673309969984,0.12800164,17190.0,17189.0,3.83752784]
[1673309979587,0.12966222,17190.0,17189.0,3.83752784]
[1673309979839,0.12800164,17190.0,17189.0,3.83752784]
[1673309985382,0.12800164,17190.0,17189.0,4.26477706]
[1673309987183,0.12800164,17190.0,17189.0,4.62677906]
[1673309989172,0.12800164,17190.0,17189.0,3.83752784]
[1673309996077,0.12800164,17190.0,17189.0,4.03752784]
[1673309999102,0.12800164,17190.0,17189.0,4.46477706]
[1673310000522,0.12800164,17190.0,17189.0,4.03752784]
[1673310001566,0.13003764,17190.0,17189.0,4.03752784]
[1673310001763,0.12661764,17190.0,17189.0,4.03752784]
[1673310005116,0.30107861,17190.0,17189.0,4.03752784]
[1673310005405,0.30273919,17190.0,17189.0,4.03752784]
[1673310005917,0.30107861,17190.0,17189.0,4.03752784]
[1673310006529,0.30273919,17190.0,17189.0,4.03752784]
[1673310007034,0.30107861,17190.0,17189.0,4.03752784]
[1673310007289,0.30107861,17190.0,17189.0,3.44358017]
[1673310007585,0.30107861,17190.0,17189.0,1.953301]
[1673310007586,0.56443064,17190.0,17189.0,1.953301]
[1673310008302,0.56277785,17190.0,17189.0,1.953301]
[1673310008577,0.56443843,17190.0,17189.0,1.953301]
[1673310008811,0.56277785,17190.0,17189.0,1.953301]
[1673310009338,0.91169979,17190.0,17189.0,1.953301]
[1673310009583,0.56277785,17190.0,17189.0,2.253301]
[1673310009835,0.56443843,17190.0,17189.0,2.253301]
[1673310010049,0.56443843,17190.0,17189.0,1.953301]
[1673310010298,0.56443843,17190.0,17189.0,2.253301]
[1673310011539,0.9063704,17190.0,17189.0,1.953301]
[1673310011801,0.55578788,17190.0,17189.0,1.953301]
[1673310012042,0.55578788,17190.0,17189.0,2.253301]
[1673310013588,0.55578788,17190.0,17189.0,1.953301]
[1673310014094,0.90470982,17190.0,17189.0,1.953301]
[1673310014534,0.55744846,17190.0,17189.0,1.953301]
[1673310014783,0.55578788,17190.0,17189.0,1.953301]
[1673310015410,0.90470982,17190.0,17189.0,1.953301]
[1673310015649,0.73190164,17190.0,17189.0,1.953301]
[1673310016676,0.73024106,17190.0,17189.0,1.953301]
[1673310016922,0.55576004,17190.0,17189.0,1.953301]
[1673310018906,0.55576004,17190.0,17189.0,2.253301]
[1673310019182,0.55576004,17190.0,17189.0,2.95057279]
[1673310021149,0.29406859,17190.0,17189.0,2.95057279]
[1673310024572,0.29572917,17190.0,17189.0,2.95057279]
[1673310024827,0.29406859,17190.0,17189.0,2.95057279]
[1673310025730,0.29572917,17190.0,17189.0,2.95057279]
[1673310025990,0.11962767,17190.0,17189.0,2.95057279]
[1673310026481,0.11962767,17190.0,17189.0,3.1250099]
[1673310027295,0.11962767,17190.0,17189.0,3.55225912]
[1673310027817,0.11962767,17190.0,17189.0,3.1250099]
[1673310028077,0.11962767,17190.0,17189.0,2.95057279]
[1673310028929,0.12128825,17190.0,17189.0,2.95057279]
[1673310029183,0.29572917,17190.0,17189.0,2.95057279]
[1673310030459,0.29406859,17190.0,17189.0,2.95057279]
[1673310032481,0.29572917,17190.0,17189.0,2.95057279]
[1673310032729,0.11962767,17190.0,17189.0,2.95057279]
[1673310033498,0.12128825,17190.0,17189.0,2.95057279]
[1673310033751,0.11962767,17190.0,17189.0,2.95057279]
[1673310036482,0.29406859,17190.0,17189.0,2.95057279]
[1673310037511,0.29572917,17190.0,17189.0,2.95057279]
[1673310039047,0.29406859,17190.0,17189.0,2.95057279]
[1673310040416,0.29572917,17190.0,17189.0,2.95057279]
[1673310041977,0.29406859,17190.0,17189.0,2.95057279]
[1673310042481,0.11962767,17190.0,17189.0,2.95057279]
[1673310043219,0.12128825,17190.0,17189.0,2.95057279]
[1673310043478,0.11962767,17190.0,17189.0,2.95057279]
[1673310043760,0.11962767,17190.0,17189.0,3.1250099]
[1673310044004,0.11962767,17190.0,17189.0,2.95057279]
[1673310044244,0.11962767,17190.0,17189.0,3.1250099]
[1673310046489,0.11962767,17190.0,17189.0,2.42773811]
[1673310046725,0.11962767,17190.0,17189.0,4.51846105]
[1673310047773,0.03803764,17190.0,17189.0,5.46641072]
[1673310048044,0.04203764,17190.0,17189.0,5.51841072]
[1673310049620,0.03803764,17190.0,17189.0,5.81528494]
[1673310049870,0.03803764,17190.0,17189.0,5.46703892]
[1673310050131,0.04403764,17190.0,17189.0,4.7861595]
[1673310050394,0.04403764,17190.0,17189.0,5.21340872]
[1673310050901,0.04403764,17190.0,17189.0,5.57541072]
[1673310051615,0.04403764,17190.0,17189.0,5.21340872]
[1673310052651,0.04403764,17190.0,17189.0,4.52748259]
[1673310052908,0.04403764,17190.0,17189.0,3.83857771]
[1673310053154,0.04403764,17190.0,17189.0,4.26582693]
[1673310053661,0.04403764,17190.0,17189.0,4.52748259]
[1673310056022,0.04403764,17190.0,17189.0,4.32748259]
[1673310057015,0.04403764,17190.0,17189.0,4.52748259]
[1673310057756,0.04403764,17190.0,17189.0,5.21347441]
[1673310058004,0.04403764,17190.0,17189.0,5.57547641]
[1673310060454,0.04403764,17190.0,17189.0,5.74991352]
[1673310060690,0.04403764,17190.0,17189.0,5.57532846]
[1673310060974,0.04403764,17190.0,17189.0,5.74991352]
[1673310061997,0.04403764,17190.0,17189.0,5.9242101]
[1673310062241,0.04403764,17190.0,17189.0,5.57533588]
[1673310062480,0.04403764,17190.0,17189.0,5.49696088]
[1673310062723,0.04403764,17190.0,17189.0,5.14808666]
[1673310062963,0.04403764,17190.0,17189.0,4.78608466]
[1673310063465,0.04403764,17190.0,17189.0,5.14808666]
[1673310063970,0.04403764,17190.0,17189.0,4.10009284]
[1673310065111,0.04403764,17190.0,17189.0,4.78642322]
[1673310065433,0.04403764,17190.0,17189.0,3.83906538]
[1673310065682,0.22013914,17190.0,17189.0,3.6641406]
[1673310065936,0.21847856,17190.0,17189.0,3.6641406]
[1673310066184,0.04403764,17190.0,17189.0,3.6641406]
[1673310067471,0.21847856,17190.0,17189.0,3.6641406]
[1673310068227,0.22013914,17190.0,17189.0,3.6641406]
[1673310068484,0.21847856,17190.0,17189.0,3.6641406]
[1673310069701,0.22013914,17190.0,17189.0,3.6641406]
[1673310069952,0.21847856,17190.0,17189.0,3.6641406]
[1673310072585,0.21847856,17190.0,17189.0,3.0823736]
[1673310072823,0.68795031,17190.0,17189.0,1.47242427]
[1673310073073,1.34995231,17190.0,17189.0,0.309]
[1673310073328,1.52441328,17190.0,17189.0,0.309]
[1673310073585,1.34814949,17190.0,17189.0,0.309]
[1673310075353,1.17355551,17190.0,17189.0,0.890767]
[1673310077143,1.34981007,17190.0,17189.0,0.890767]
[1673310077647,1.52411157,17190.0,17189.0,0.890767]
[1673310077894,1.34981007,17190.0,17189.0,0.890767]
[1673310078915,1.71521328,17190.0,17189.0,0.690767]
[1673310079423,1.71521328,17190.0,17189.0,0.109]
[1673310079678,1.54045576,17190.0,17189.0,0.109]
[1673310080721,1.97660818,17190.0,17189.0,0.109]
[1673310080978,1.54045576,17190.0,17189.0,0.109]
[1673310085042,1.71521328,17190.0,17189.0,0.109]
[1673310085312,1.97645738,17190.0,17189.0,0.109]
[1673310085581,2.34547703,17190.0,17189.0,0.109]
[1673310085825,2.67813108,17190.0,17189.0,0.109]
[1673310086092,3.25986408,17190.0,17189.0,0.109]
[1673310086860,2.67213108,17190.0,17187.0,1.73199899]
[1673310087118,0.851402,17189.0,17187.0,1.73199099]
[1673310087388,0.17416785,17188.0,17187.0,1.73199099]
[1673310087639,1.27315533,17189.0,17187.0,1.73199099]
[1673310087856,0.17416785,17188.0,17187.0,1.73199099]
[1673310088132,0.17416785,17188.0,17187.0,1.78899099]
[1673310088375,0.17416785,17188.0,17187.0,1.73199099]
[1673310089124,0.19624695,17188.0,17187.0,1.78899099]
[1673310090451,0.19790753,17188.0,17187.0,1.78899099]
[1673310090724,0.19790753,17188.0,17187.0,1.220633]
[1673310092752,0.48399117,17188.0,17187.0,1.220633]
[1673310093327,0.22273939,17188.0,17187.0,1.220633]
[1673310093526,0.58474139,17188.0,17187.0,1.220633]
[1673310093789,0.58474139,17188.0,17187.0,0.638813]
[1673310094542,0.84599317,17188.0,17187.0,0.638813]
[1673310094793,1.18612916,17188.0,17187.0,0.057]
[1673310095051,1.93343163,17188.0,17187.0,0.05693006]
[1673310095564,1.93314098,17188.0,17187.0,0.05693006]
[1673310096071,1.93314098,17188.0,17186.0,1.00314968]
[1673310096072,0.3,17187.0,17186.0,1.00314968]
[1673310096324,1.2868619,17187.0,17186.0,1.00314968]
[1673310097104,0.9248599,17187.0,17186.0,1.00314968]
[1673310097356,1.04749439,17187.0,17186.0,1.01114968]
[1673310098171,1.14846045,17187.0,17186.0,1.01114968]
[1673310098420,0.78645845,17187.0,17186.0,1.01114968]
[1673310099691,0.97443649,17187.0,17186.0,1.01114968]
[1673310099947,0.97443649,17187.0,17186.0,1.59301768]
[1673310099948,0.61243449,17187.0,17186.0,1.59301768]
[1673310100927,0.78645845,17187.0,17186.0,1.59301768]
[1673310101715,1.14846045,17187.0,17186.0,1.59301768]
[1673310102490,1.11882596,17187.0,17186.0,1.59301768]
[1673310102748,0.644802,17187.0,17186.0,2.17488568]
[1673310104034,0.2828,17187.0,17186.0,2.17488568]
[1673310104592,0.644802,17187.0,17186.0,2.17488568]
[1673310105101,0.455002,17187.0,17186.0,2.17488568]
[1673310105358,0.093,17187.0,17186.0,2.17488568]
[1673310108524,0.455002,17187.0,17186.0,2.17488568]
[1673310109537,0.62902596,17187.0,17186.0,2.17488568]
[1673310110049,0.455002,17187.0,17186.0,2.17488568]
[1673310110291,0.62902596,17187.0,17186.0,2.17488568]
[1673310110531,0.62902596,17187.0,17186.0,2.75675368]
[1673310110782,0.455002,17187.0,17186.0,2.75675368]
[1673310111070,0.26702396,17187.0,17186.0,2.75675368]
[1673310111296,0.62902596,17187.0,17186.0,2.75675368]
[1673310111794,0.26702396,17187.0,17186.0,2.75675368]
[1673310112044,0.62902596,17187.0,17186.0,2.75675368]
[1673310113347,0.26702396,17187.0,17186.0,2.75675368]
[1673310113615,0.62902596,17187.0,17186.0,2.75675368]
[1673310113876,0.26702396,17187.0,17186.0,2.75675368]
[1673310114129,0.62902596,17187.0,17186.0,2.75675368]
[1673310115633,0.26702396,17187.0,17186.0,2.17488568]
[1673310115879,0.62902596,17187.0,17186.0,2.17488568]
[1673310116590,0.26702396,17187.0,17186.0,2.17488568]
[1673310116806,0.62902596,17187.0,17186.0,2.17488568]
[1673310117311,0.62902596,17187.0,17186.0,2.73076834]
[1673310117576,0.62902596,17187.0,17186.0,3.72168079]
[1673310117577,0.093,17187.0,17186.0,3.72168079]
[1673310117835,0.093,17187.0,17186.0,4.47971883]
[1673310118094,0.093,17187.0,17186.0,4.05246961]
[1673310118609,0.093,17187.0,17186.0,4.47971883]
[1673310118885,0.093,17187.0,17186.0,4.05246961]
[1673310119143,0.093,17187.0,17186.0,4.43995257]
[1673310119393,0.093,17187.0,17186.0,4.61424915]
[1673310119639,0.1100791,17188.0,17186.0,4.61424915]
[1673310119640,0.0170791,17188.0,17186.0,4.60624915]
[1673310119901,0.0170791,17188.0,17187.0,2.48319889]
[1673310120140,0.0170791,17188.0,17187.0,4.22870389]
[1673310120644,0.0170791,17188.0,17187.0,4.40300047]
[1673310120914,0.0170791,17188.0,17187.0,4.22870389]
[1673310121177,0.0170791,17188.0,17187.0,4.40300047]
[1673310121497,0.0240791,17188.0,17187.0,5.01304988]
[1673310122178,0.0240791,17188.0,17187.0,4.57576102]
[1673310122429,0.0240791,17188.0,17187.0,4.33170389]
[1673310122932,0.0240791,17188.0,17187.0,4.92508058]
[1673310123695,0.0240791,17188.0,17187.0,4.33170389]
[1673310124175,0.0240791,17188.0,17187.0,4.87694363]
[1673310125373,0.0240791,17188.0,17187.0,4.8652338]
[1673310126902,0.0240791,17188.0,17187.0,4.44969441]
[1673310127150,0.0240791,17188.0,17187.0,4.08769241]
[1673310129157,0.0240791,17188.0,17187.0,4.8588959]
[1673310129410,0.0240791,17188.0,17187.0,4.8589121]
[1673310129659,0.0240791,17188.0,17187.0,4.44969441]
[1673310131947,0.0240791,17188.0,17187.0,4.24969441]
[1673310132200,0.0240791,17188.0,17187.0,4.65894218]
[1673310132933,0.0240791,17188.0,17187.0,4.85894218]
[1673310134479,0.0240791,17188.0,17187.0,4.44969441]
[1673310134745,0.0240791,17188.0,17187.0,4.8588933]
[1673310136008,0.0240791,17188.0,17187.0,4.31365356]
[1673310136257,0.02399232,17188.0,17187.0,4.31365356]
[1673310137736,0.02399232,17188.0,17187.0,4.48795014]
[1673310138748,0.02399232,17188.0,17187.0,5.02803592]
[1673310139491,0.02399232,17188.0,17187.0,4.85373934]
[1673310145508,0.02399232,17188.0,17187.0,5.02803592]
[1673310145755,0.02399232,17188.0,17187.0,3.10823434]
[1673310146011,0.02399232,17188.0,17187.0,4.85373934]
[1673310146262,0.02399232,17188.0,17187.0,4.44454045]
[1673310147031,0.02399232,17188.0,17187.0,4.85391222]
[1673310147287,0.02399232,17188.0,17187.0,4.44454045]
[1673310148070,0.02399232,17188.0,17187.0,4.85389866]
[1673310148577,0.02399232,17188.0,17187.0,4.44454045]
[1673310149079,0.02387474,17188.0,17187.0,4.85389312]
[1673310149577,0.02387474,17188.0,17187.0,5.0281897]
[1673310149845,0.02387474,17188.0,17187.0,4.44454045]
[1673310150092,0.02387474,17188.0,17187.0,4.08253845]
[1673310150344,0.02387474,17188.0,17187.0,4.08316672]
[1673310150587,0.02387474,17188.0,17187.0,4.49247054]
[1673310150827,0.02387474,17188.0,17187.0,4.85447256]
[1673310151079,0.02387474,17188.0,17187.0,4.44516872]
[1673310152614,0.02387474,17188.0,17187.0,4.08316672]
[1673310155394,0.02387474,17188.0,17187.0,4.2574633]
[1673310157088,0.02387474,17188.0,17187.0,3.6574633]
[1673310157335,0.02387474,17188.0,17187.0,4.59264244]
[1673310157874,0.02387474,17188.0,17187.0,5.0018666]
[1673310158127,0.02387474,17188.0,17187.0,5.71274282]
[1673310158381,0.02387474,17188.0,17187.0,5.12922208]
[1673310158624,0.02387474,17188.0,17187.0,4.94166046]
[1673310158874,0.02387474,17188.0,17187.0,5.3508985]
[1673310159086,0.02387474,17188.0,17187.0,4.76722008]
[1673310162784,0.02387474,17188.0,17187.0,4.94168674]
[1673310163039,0.02387474,17188.0,17187.0,5.12922208]
[1673310164071,0.02387474,17188.0,17187.0,4.59281621]
[1673310166075,0.02387474,17188.0,17187.0,4.95481821]
[1673310167063,0.02553532,17188.0,17187.0,4.59218794]
[1673310167308,0.02387474,17188.0,17187.0,4.59218794]
[1673310169151,0.02387474,17188.0,17187.0,4.95418994]
[1673310170376,0.02387474,17188.0,17187.0,5.30306416]
[1673310170634,0.02387474,17188.0,17187.0,5.12859381]
[1673310171529,0.02387474,17188.0,17187.0,4.59219985]
[1673310171764,0.02387474,17188.0,17187.0,4.94107407]
[1673310172076,0.02387474,17188.0,17187.0,4.59219985]
[1673310173629,0.02387474,17188.0,17187.0,4.95420185]
[1673310174648,0.02387474,17188.0,17187.0,4.94170234]
[1673310174910,0.02387474,17188.0,17187.0,4.94170416]
[1673310175159,0.02387474,17188.0,17187.0,5.97460628]
[1673310175418,0.02387474,17188.0,17187.0,5.97467229]
[1673310175682,0.02387474,17188.0,17187.0,5.71295062]
[1673310176186,0.02387474,17188.0,17187.0,5.35094862]
[1673310176437,0.02387474,17188.0,17187.0,5.64185862]
[1673310176693,0.02387474,17188.0,17187.0,5.23256719]
[1673310176966,0.02387474,17188.0,17187.0,5.64207947]
[1673310177302,0.02377128,17188.0,17187.0,5.64207947]
[1673310178239,0.02377128,17188.0,17187.0,5.35116947]
[1673310182236,0.02377128,17188.0,17187.0,4.94165719]
[1673310182478,0.02377128,17188.0,17187.0,5.35113845]
[1673310182692,0.02377128,17188.0,17187.0,5.35113844]
[1673310183201,0.02377128,17188.0,17187.0,5.35113514]
[1673310183703,0.02377128,17188.0,17187.0,4.94165719]
[1673310183958,0.02377128,17188.0,17187.0,5.3511352]
[1673310184200,0.02377128,17188.0,17187.0,4.94165719]
[1673310184988,0.02377128,17188.0,17187.0,5.3511698]
[1673310186243,0.02377128,17188.0,17187.0,5.35116626]
[1673310186524,0.02377128,17188.0,17187.0,4.94165719]
[1673310186769,0.02377128,17188.0,17187.0,5.35116628]
[1673310187491,0.02377128,17188.0,17187.0,5.71316828]
[1673310188987,0.02377128,17188.0,17187.0,5.35116628]
[1673310189474,0.02377128,17188.0,17187.0,5.71316828]
[1673310190001,0.02377128,17188.0,17187.0,5.30365919]
[1673310190264,0.02377128,17188.0,17187.0,4.94165719]
[1673310194681,0.02377128,17188.0,17187.0,4.59278297]